fUSD/lending_fUSD_20241026
["ID","MTS","AMOUNT","RATE_DAILY","PERIOD"]
[340839077,1729907442943,-500.0,0.00059452,120]
[340839078,1729907442952,-500.0,0.00059452,120]
[340839079,1729907442961,-500.0,0.00059452,120]
[340839080,1729907442971,-260.89728879,0.00059452,120]
[340839081,1729907442981,-472.76619404,0.00059452,120]
[340839082,1729907442990,-500.0,0.00059452,120]
[340839083,1729907443000,-500.0,0.00059452,120]
[340839084,1729907443009,-500.0,0.00059452,120]
[340839085,1729907443018,-500.0,0.00059452,120]
[340839086,1729907443027,-508.71742418,0.00059452,120]
[340839087,1729907443036,-500.0,0.00059452,120]
[340839088,1729907443046,-321.00999423,0.00059452,120]
[340839089,1729907443056,-500.0,0.00059452,120]
[340839090,1729907443067,-500.0,0.00059452,120]
[340839091,1729907443076,-500.0,0.00059452,120]
[340839092,1729907443085,-500.0,0.00059452,120]
[340839093,1729907443095,-500.0,0.00059452,120]
[340839094,1729907443104,-500.0,0.00059452,120]
[340839095,1729907443113,-500.0,0.00059452,120]
[340839096,1729907443123,-500.0,0.00059452,120]
[340839097,1729907443132,-500.0,0.00059452,120]
[340839098,1729907443141,-500.0,0.00059452,120]
[340839099,1729907443150,-500.0,0.00059452,120]
[340839100,1729907443160,-500.0,0.00059452,120]
[340839101,1729907443169,-500.0,0.00059452,120]
[340839102,1729907443178,-500.0,0.00059452,120]
[340839103,1729907443188,-500.0,0.00059452,120]
[340839104,1729907443199,-500.0,0.00059452,120]
[340839105,1729907443207,-500.0,0.00059452,120]
[340839106,1729907443217,-408.69513038,0.00059452,120]
[340839107,1729907443227,-534.38703236,0.00059452,120]
[340839109,1729907443236,-521.66246417,0.00059452,120]
[340839111,1729907443246,-500.0,0.00059452,120]
[340839113,1729907443258,-152.75064811,0.00059452,120]
[340839114,1729907443267,-500.0,0.00059452,120]
[340839115,1729907443276,-322.34640058,0.00059452,120]
[340839116,1729907443286,-500.0,0.00059452,120]
[340839117,1729907443296,-524.79443326,0.00059452,120]
[340839118,1729907443305,-528.92339008,0.00059452,120]
[340839119,1729907443315,-522.25090193,0.00059452,120]
[340839120,1729907443325,-500.0,0.00059452,120]
[340839121,1729907443336,-500.0,0.00059452,120]
[340839122,1729907443345,-500.0,0.00059452,120]
[340839123,1729907443355,-536.0991644,0.00059452,120]
[340839124,1729907443364,-500.0,0.00059452,120]
[340839125,1729907443373,-525.02177436,0.00059452,120]
[340839126,1729907443383,-500.0,0.00059452,120]
[340839127,1729907443392,-500.0,0.00059452,120]
[340839128,1729907443402,-500.0,0.00059452,120]
[340839129,1729907443413,-500.0,0.00059452,120]
[340839130,1729907443422,-500.0,0.00059452,120]
[340839131,1729907443432,-528.80122264,0.00059452,120]
[340839132,1729907443441,-525.61655126,0.00059452,120]
[340839133,1729907443451,-284.09184956,0.00059452,120]
[340839134,1729907443460,-261.69578391,0.00059452,120]
[340839135,1729907443470,-528.9352407,0.00059452,120]
[340839136,1729907443479,-500.0,0.00059452,120]
[340839137,1729907443488,-500.0,0.00059452,120]
[340839138,1729907443498,-512.87283479,0.00059452,120]
[340839139,1729907443507,-502.60946728,0.00059452,120]
[340839140,1729907443518,-170.63738175,0.00059452,120]
[340839141,1729907443527,-554.6546977,0.00059452,120]
[340839142,1729907443536,-500.0,0.00059452,7]
[340839143,1729907443546,-500.0,0.00059452,7]
[340839144,1729907443555,-500.0,0.00059452,7]
[340839145,1729907443564,-517.80789117,0.00059452,120]
[340839146,1729907443573,-500.0,0.00059452,7]
[340839147,1729907443582,-500.0,0.00059452,7]
[340839148,1729907443591,-500.0,0.00059452,7]
[340839149,1729907443601,-500.0,0.00059452,7]
[340839150,1729907443610,-500.0,0.00059452,7]
[340839151,1729907443619,-500.0,0.00059452,7]
[340839152,1729907443628,-500.0,0.00059452,7]
[340839153,1729907443638,-500.0,0.00059452,7]
[340839154,1729907443647,-500.0,0.00059452,7]
[340839155,1729907443656,-500.0,0.00059452,7]
[340839156,1729907443667,-423.10076394,0.00059452,7]
[340839157,1729907443677,-500.0,0.00059452,120]
[340839158,1729907443687,-500.0,0.00059452,120]
[340839159,1729907443696,-500.0,0.00059452,120]
[340839160,1729907443705,-495.54326843,0.00059452,120]
[340839161,1729907443715,-500.0,0.00059452,120]
[340839162,1729907443725,-500.0,0.00059452,120]
[340839163,1729907443734,-500.0,0.00059452,120]
[340839164,1729907443744,-369.0095833,0.00059452,14]
[340839165,1729907443754,-500.0,0.00059452,120]
[340839166,1729907443764,-500.0,0.00059452,120]
[340839167,1729907443774,-500.0,0.00059452,120]
[340839168,1729907443784,-500.0,0.00059452,120]
[340839169,1729907443794,-587.53525416,0.00059452,120]
[340839170,1729907443803,-555.42656142,0.00059452,120]
[340839171,1729907443813,-558.4407827,0.00059452,120]
[340839172,1729907443823,-505.18474102,0.00059452,120]
[340839173,1729907443832,-500.0,0.00059452,120]
[340839174,1729907443842,-500.0,0.00059452,120]
[340839175,1729907443852,-515.4144948,0.00059452,120]
[340839176,1729907443862,-550.72225941,0.00059452,120]
[340839177,1729907443872,-510.30866944,0.00059452,120]
[340839178,1729907443881,-521.95798369,0.00059452,120]
[340839179,1729907443891,-500.0,0.00059452,120]
[340839180,1729907443901,-504.90765356,0.00059452,120]
[340839181,1729907443913,-500.0,0.00059452,120]
[340839182,1729907443923,-548.80978102,0.00059452,120]
[340839183,1729907443932,-541.45807554,0.00059452,120]
[340839184,1729907443942,-500.0,0.00059452,120]
[340839185,1729907443952,-605.17817634,0.00059452,120]
[340839186,1729907443961,-500.0,0.00059452,120]
[340839187,1729907443970,-524.91640748,0.00059452,120]
[340839188,1729907443979,-500.0,0.00059452,120]
[340839189,1729907443988,-500.0,0.00059452,120]
[340839190,1729907443998,-500.0,0.00059452,120]
[340839191,1729907444007,-500.0,0.00059452,120]
[340839192,1729907444016,-500.0,0.00059452,120]
[340839193,1729907444026,-500.0,0.00059452,120]
[340839194,1729907444035,-500.0,0.00059452,120]
[340839195,1729907444044,-500.0,0.00059452,120]
[340839196,1729907444054,-500.0,0.00059452,120]
[340839197,1729907444064,-544.56,0.00059452,120]
[340839198,1729907444073,-500.0,0.00059452,120]
[340839199,1729907444082,-544.56,0.00059452,120]
[340839200,1729907444091,-544.56,0.00059452,120]
[340839201,1729907444101,-533.98578965,0.00059452,120]
[340839202,1729907444110,-544.56,0.00059452,120]
[340839203,1729907444119,-544.56,0.00059452,120]
[340839204,1729907444127,-544.56,0.00059452,120]
[340839205,1729907444136,-544.56,0.00059452,120]
[340839206,1729907444145,-583.03279529,0.00059452,120]
[340839207,1729907444154,-500.0,0.00059452,120]
[340839208,1729907444165,-500.0,0.00059452,120]
[340839209,1729907444174,-532.23420356,0.00059452,120]
[340839210,1729907444183,-525.73281987,0.00059452,120]
[340839211,1729907444192,-500.0,0.00059452,120]
[340839212,1729907444201,-500.0,0.00059452,120]
[340839213,1729907444210,-500.0,0.00059452,120]
[340839214,1729907444219,-500.0,0.00059452,120]
[340839215,1729907444227,-500.0,0.00059452,120]
[340839216,1729907444236,-505.00117474,0.00059452,120]
[340839217,1729907444245,-500.0,0.00059452,120]
[340839218,1729907444255,-500.0,0.00059452,120]
[340839219,1729907444265,-500.0,0.00059452,120]
[340839220,1729907444274,-500.0,0.00059452,120]
[340839221,1729907444284,-510.24454612,0.00059452,120]
[340839222,1729907444293,-516.52206548,0.00059452,120]
[340839223,1729907444303,-500.0,0.00059452,120]
[340839224,1729907444313,-500.0,0.00059452,120]
[340839225,1729907444323,-533.14814739,0.00059452,120]
[340839226,1729907444332,-583.1700784,0.00059452,120]
[340839227,1729907444342,-500.0,0.00059452,120]
[340839228,1729907444351,-500.0,0.00059452,120]
[340839229,1729907444444,-516.05375127,0.00059452,120]
[340839230,1729907444454,-500.0,0.00059452,120]
[340839231,1729907444464,-500.0,0.00059452,120]
[340839232,1729907444474,-574.84715333,0.00059452,120]
[340839233,1729907444484,-515.78420582,0.00059452,120]
[340839234,1729907444493,-500.0,0.00059452,120]
[340839235,1729907444502,-500.0,0.00059452,120]
[340839236,1729907444512,-500.0,0.00059452,120]
[340839237,1729907444521,-500.0,0.00059452,120]
[340839238,1729907444530,-500.0,0.00059452,120]
[340839239,1729907444540,-500.0,0.00059452,120]
[340839240,1729907444549,-458.35247685,0.00059452,120]
[340839241,1729907444558,-500.9378377,0.00059452,120]
[340839242,1729907444567,-500.0,0.00059452,120]
[340839243,1729907444578,-500.0,0.00059452,120]
[340839244,1729907444587,-500.0,0.00059452,120]
[340839245,1729907444597,-500.0,0.00059452,120]
[340839246,1729907444607,-533.68825727,0.00059452,120]
[340839247,1729907444616,-536.49828376,0.00059452,120]
[340839248,1729907444626,-500.0,0.00059452,120]
[340839249,1729907444635,-506.76932964,0.00059452,120]
[340839250,1729907444644,-513.26756867,0.00059452,120]
[340839251,1729907444654,-500.0,0.00059452,120]
[340839252,1729907444666,-500.0,0.00059452,120]
[340839253,1729907444675,-600.93757321,0.00059452,120]
[340839254,1729907444685,-525.81728437,0.00059452,120]
[340839255,1729907444694,-518.89342775,0.00059452,120]
[340839256,1729907444703,-530.37091676,0.00059452,120]
[340839257,1729907444713,-500.0,0.00059452,120]
[340839258,1729907444722,-500.0,0.00059452,120]
[340839259,1729907444736,-500.0,0.00059452,120]
[340839260,1729907444746,-500.0,0.00059452,120]
[340839261,1729907444756,-500.0,0.00059452,120]
[340839262,1729907444766,-500.0,0.00059452,120]
[340839263,1729907444776,-500.0,0.00059452,120]
[340839264,1729907444785,-500.0,0.00059452,120]
[340839265,1729907444795,-500.0,0.00059452,120]
[340839266,1729907444805,-500.0,0.00059452,120]
[340839267,1729907444815,-500.0,0.00059452,120]
[340839268,1729907444825,-500.0,0.00059452,120]
[340839269,1729907444834,-500.0,0.00059452,120]
[340839270,1729907444843,-500.0,0.00059452,120]
[340839271,1729907444852,-500.0,0.00059452,120]
[340839272,1729907444861,-350.91936732,0.00059452,120]
[340839273,1729907444871,-164.64381314,0.00059452,120]
[340839274,1729907444880,-153.76872951,0.00059452,120]
[340839275,1729907444889,-522.18397706,0.00059452,120]
[340839276,1729907444899,-514.93859924,0.00059452,120]
[340839277,1729907444909,-598.5393196,0.00059452,120]
[340839278,1729907444925,-500.0,0.00059452,55]
[340839279,1729907444934,-500.0,0.00059452,55]
[340839280,1729907444943,-500.0,0.00059452,55]
[340839281,1729907444952,-526.11398393,0.00059452,120]
[340839282,1729907444962,-511.48089737,0.00059452,120]
[340839283,1729907444971,-548.0460258,0.00059452,55]
[340839284,1729907444982,-274.27791044,0.00059452,120]
[340839285,1729907444992,-505.76303475,0.00059452,120]
[340839286,1729907445002,-616.18390026,0.00059452,120]
[340839287,1729907445012,-500.0,0.00059452,120]
[340839288,1729907445022,-500.0,0.00059452,120]
[340839289,1729907445031,-519.61261454,0.00059452,120]
[340839290,1729907445041,-570.88115979,0.00059452,120]
[340839291,1729907445051,-512.37099451,0.00059452,120]
[340839292,1729907445062,-500.0,0.00059452,120]
[340839293,1729907445071,-500.0,0.00059452,120]
[340839294,1729907445081,-500.0,0.00059452,120]
[340839295,1729907445091,-500.0,0.00059452,120]
[340839296,1729907445101,-434.24389334,0.00059452,120]
[340839297,1729907445112,-500.0,0.00059452,120]
[340839298,1729907445122,-500.0,0.00059452,120]
[340839299,1729907445132,-500.66112875,0.00059452,120]
[340839300,1729907445142,-500.0,0.00059452,120]
[340839301,1729907445152,-500.0,0.00059452,120]
[340839302,1729907445165,-500.0,0.00059452,120]
[340839303,1729907445174,-500.0,0.00059452,120]
[340839304,1729907445184,-505.69848208,0.00059452,120]
[340839305,1729907445194,-500.0,0.00059452,120]
[340839306,1729907445203,-500.0,0.00059452,120]
[340839307,1729907445213,-500.0,0.00059452,120]
[340839308,1729907445223,-500.0,0.00059452,2]
[340839309,1729907445233,-500.0,0.00059452,120]
[340839310,1729907445243,-500.0,0.00059452,2]
[340839311,1729907445255,-536.64695418,0.00059452,120]
[340839312,1729907445266,-517.23918602,0.00059452,2]
[340839313,1729907445277,-178.12950258,0.00059452,120]
[340839314,1729907445287,-516.26183032,0.00059452,120]
[340839315,1729907445298,-500.0,0.00059452,120]
[340839316,1729907445308,-500.0,0.00059452,120]
[340839317,1729907445318,-416.89902863,0.00059452,120]
[340839318,1729907445327,-500.0,0.00059452,120]
[340839319,1729907445339,-500.0,0.00059452,120]
[340839320,1729907445350,-500.0,0.00059452,120]
[340839321,1729907445363,-356.93163095,0.00059452,120]
[340839322,1729907445372,-270.07655347,0.00059452,120]
[340839323,1729907445383,-517.30231426,0.00059452,120]
[340839324,1729907445393,-500.0,0.00059452,120]
[340839325,1729907445403,-500.0,0.00059452,120]
[340839326,1729907445415,-500.0,0.00059452,120]
[340839327,1729907445427,-500.0,0.00059452,120]
[340839328,1729907445436,-500.0,0.00059452,120]
[340839329,1729907445446,-500.0,0.00059452,120]
[340839330,1729907445455,-500.0,0.00059452,120]
[340839331,1729907445465,-500.0,0.00059452,120]
[340839332,1729907445475,-500.0,0.00059452,120]
[340839333,1729907445484,-500.0,0.00059452,120]
[340839334,1729907445494,-500.0,0.00059452,120]
[340839335,1729907445503,-500.0,0.00059452,120]
[340839336,1729907445514,-599.99893897,0.00059452,120]
[340839337,1729907445523,-500.0,0.00059452,120]
[340839338,1729907445534,-210.8357951,0.00059452,120]
[340839339,1729907445543,-500.0,0.00059452,120]
[340839340,1729907445553,-622.75972804,0.00059452,120]
[340839341,1729907445562,-500.0,0.00059452,120]
[340839342,1729907445572,-500.0,0.00059452,120]
[340839343,1729907445582,-331.78272452,0.00059452,120]
[340839344,1729907445592,-500.0,0.00059452,120]
[340839345,1729907445602,-500.0,0.00059452,120]
[340839346,1729907445611,-500.0,0.00059452,120]
[340839347,1729907445621,-566.40043225,0.00059452,120]
[340839348,1729907445630,-500.0,0.00059452,120]
[340839349,1729907445639,-500.0,0.00059452,120]
[340839350,1729907445649,-504.12335761,0.00059452,120]
[340839351,1729907445659,-500.0,0.00059452,120]
[340839352,1729907445671,-500.0,0.00059452,120]
[340839353,1729907445679,-500.0,0.00059452,120]
[340839354,1729907445689,-335.5775265,0.00059452,120]
[340839355,1729907445698,-500.0,0.00059452,120]
[340839356,1729907445708,-318.49298399,0.00059452,120]
[340839357,1729907445718,-500.0,0.00059452,120]
[340839358,1729907445728,-530.01506589,0.00059452,120]
[340839360,1729907445737,-500.0,0.00059452,120]
[340839361,1729907445747,-500.0,0.00059452,120]
[340839362,1729907445756,-500.0,0.00059452,120]
[340839363,1729907445765,-496.28706369,0.00059452,120]
[340839364,1729907445774,-500.0,0.00059452,120]
[340839365,1729907445783,-500.0,0.00059452,120]
[340839366,1729907445792,-286.9481115,0.00059452,120]
[340839367,1729907445802,-500.0,0.00059452,120]
[340839368,1729907445811,-230.35956236,0.00059452,120]
[340839369,1729907445821,-500.0,0.00059452,120]
[340839370,1729907445831,-253.49115056,0.00059452,120]
[340839371,1729907445840,-500.0,0.00059452,120]
[340839372,1729907445849,-407.44015276,0.00059452,120]
[340839373,1729907445859,-500.0,0.00059452,120]
[340839374,1729907445868,-500.0,0.00059452,120]
[340839375,1729907445878,-500.0,0.00059452,120]
[340839376,1729907445887,-500.0,0.00059452,120]
[340839377,1729907445897,-500.0,0.00059452,120]
[340839378,1729907445907,-500.0,0.00059452,120]
[340839379,1729907445917,-500.0,0.00059452,120]
[340839380,1729907445927,-500.0,0.00059452,120]
[340839381,1729907445937,-500.0,0.00059452,120]
[340839382,1729907445946,-500.0,0.00059452,120]
[340839383,1729907445955,-500.0,0.00059452,120]
[340839384,1729907445964,-500.0,0.00059452,120]
[340839385,1729907445974,-500.0,0.00059452,120]
[340839386,1729907445983,-500.0,0.00059452,120]
[340839387,1729907445992,-500.0,0.00059452,120]
[340839388,1729907446002,-500.0,0.00059452,120]
[340839389,1729907446011,-500.0,0.00059452,120]
[340839390,1729907446020,-518.82950525,0.00059452,120]
[340839391,1729907446029,-500.0,0.00059452,120]
[340839392,1729907446038,-500.0,0.00059452,120]
[340839393,1729907446049,-500.0,0.00059452,120]
[340839394,1729907446058,-500.0,0.00059452,120]
[340839395,1729907446067,-500.0,0.00059452,120]
[340839396,1729907446077,-500.0,0.00059452,120]
[340839397,1729907446087,-500.0,0.00059452,120]
[340839398,1729907446096,-505.92428743,0.00059452,120]
[340839399,1729907446106,-500.0,0.00059452,120]
[340839400,1729907446116,-252.97183822,0.00059452,120]
[340839401,1729907446126,-500.0,0.00059452,120]
[340839402,1729907446135,-507.12603767,0.00059452,120]
[340839403,1729907446145,-500.0,0.00059452,120]
[340839404,1729907446155,-500.0,0.00059452,120]
[340839405,1729907446165,-512.74341411,0.00059452,120]
[340839406,1729907446175,-523.04917208,0.00059452,120]
[340839407,1729907446184,-189.11146723,0.00059452,120]
[340839408,1729907446194,-180.14519769,0.00059452,120]
[340839409,1729907446203,-500.0,0.00059452,120]
[340839410,1729907446212,-500.0,0.00059452,120]
[340839411,1729907446222,-151.0,0.00059452,120]
[340839412,1729907446231,-500.0,0.00059452,120]
[340839413,1729907446241,-500.0,0.00059452,120]
[340839414,1729907446250,-500.0,0.00059452,120]
[340839415,1729907446263,-500.0,0.00059452,120]
[340839416,1729907446272,-500.0,0.00059452,120]
[340839417,1729907446282,-500.0,0.00059452,120]
[340839418,1729907446291,-1471.99,0.00059452,120]
[340839419,1729907446301,-1471.99,0.00059452,120]
[340839420,1729907446311,-151.0,0.00059452,120]
[340839421,1729907446320,-1471.99,0.00059452,120]
[340839422,1729907446410,-1471.99,0.00059452,120]
[340839423,1729907446420,-500.0,0.00059452,120]
[340839424,1729907446431,-1471.99,0.00059452,120]
[340839425,1729907446440,-500.0,0.00059452,120]
[340839426,1729907446449,-1471.99,0.00059452,120]
[340839427,1729907446459,-500.0,0.00059452,120]
[340839428,1729907446468,-1471.99,0.00059452,120]
[340839429,1729907446477,-541.37327319,0.00059452,120]
[340839430,1729907446486,-631.85239928,0.00059452,120]
[340839431,1729907446495,-544.11159393,0.00059452,120]
[340839432,1729907446504,-500.95002226,0.00059452,120]
[340839433,1729907446513,-500.0,0.00059452,120]
[340839434,1729907446522,-506.40784825,0.00059452,120]
[340839435,1729907446532,-332.16440163,0.00059452,120]
[340839436,1729907446543,-500.0,0.00059452,120]
[340839437,1729907446552,-500.0,0.00059452,120]
[340839438,1729907446562,-500.0,0.00059452,120]
[340839439,1729907446572,-500.0,0.00059452,120]
[340839440,1729907446582,-500.0,0.00059452,120]
[340839441,1729907446591,-500.0,0.00059452,120]
[340839442,1729907446601,-229.94985232,0.00059452,120]
[340839443,1729907446613,-521.90105676,0.00059452,120]
[340839444,1729907446622,-510.34067634,0.00059452,120]
[340839445,1729907446631,-564.44875542,0.00059452,120]
[340839446,1729907446640,-500.0,0.00059452,120]
[340839447,1729907446650,-535.46637493,0.00059452,120]
[340839448,1729907446661,-500.0,0.00059452,120]
[340839449,1729907446671,-500.0,0.00059452,120]
[340839450,1729907446680,-191.92847321,0.00059452,120]
[340839451,1729907446689,-271.54773092,0.00059452,120]
[340839452,1729907446699,-589.90346787,0.00059452,120]
[340839453,1729907446708,-542.62756308,0.00059452,120]
[340839454,1729907446718,-500.0,0.00059452,120]
[340839455,1729907446728,-500.0,0.00059452,120]
[340839456,1729907446737,-500.0,0.00059452,120]
[340839457,1729907446746,-500.0,0.00059452,120]
[340839458,1729907446755,-500.0,0.00059452,120]
[340839459,1729907446764,-500.0,0.00059452,120]
[340839460,1729907446774,-500.0,0.00059452,120]
[340839461,1729907446783,-500.0,0.00059452,120]
[340839462,1729907446792,-500.0,0.00059452,120]
[340839463,1729907446801,-500.0,0.00059452,120]
[340839464,1729907446810,-500.0,0.00059452,120]
[340839465,1729907446819,-204.69485698,0.00059452,7]
[340839466,1729907446827,-558.18228476,0.00059452,120]
[340839467,1729907446836,-500.0,0.00059452,120]
[340839468,1729907446846,-238.28424111,0.00059452,120]
[340839469,1729907446855,-510.93241463,0.00059452,120]
[340839470,1729907446864,-500.0,0.00059452,120]
[340839471,1729907446873,-500.0,0.00059452,120]
[340839472,1729907446883,-500.0,0.00059452,120]
[340839473,1729907446892,-337.78942934,0.00059452,120]
[340839474,1729907446902,-522.57706275,0.00059452,120]
[340839475,1729907446911,-500.0,0.00059452,120]
[340839476,1729907446921,-5038.52126607,0.00059452,120]
[340839477,1729907446930,-391.63426255,0.00059452,120]
[340839478,1729907446940,-500.0,0.00059452,120]
[340839479,1729907446949,-382.11301177,0.00059452,120]
[340839480,1729907446958,-546.84715579,0.00059452,120]
[340839481,1729907446967,-522.6615184,0.00059452,120]
[340839482,1729907446976,-500.0,0.00059452,120]
[340839483,1729907446986,-500.0,0.00059452,120]
[340839484,1729907446995,-588.30665523,0.00059452,120]
[340839485,1729907447005,-500.0,0.00059452,120]
[340839486,1729907447014,-628.40854329,0.00059452,120]
[340839487,1729907447023,-500.0,0.00059452,120]
[340839488,1729907447032,-640.21323674,0.00059452,120]
[340839489,1729907447041,-500.0,0.00059452,120]
[340839490,1729907447049,-500.0,0.00059452,120]
[340839491,1729907447059,-429.18802522,0.00059452,120]
[340839492,1729907447068,-500.0,0.00059452,120]
[340839493,1729907447077,-562.895145,0.00059452,120]
[340839494,1729907447086,-520.7752726,0.00059452,120]
[340839495,1729907447095,-534.70119234,0.00059452,120]
[340839496,1729907447107,-500.0,0.00059452,120]
[340839497,1729907447116,-617.18150903,0.00059452,120]
[340839498,1729907447124,-500.0,0.00059452,120]
[340839499,1729907447134,-231.91508984,0.00059452,120]
[340839500,1729907447143,-500.0,0.00059452,120]
[340839501,1729907447152,-500.0,0.00059452,120]
[340839502,1729907447161,-500.0,0.00059452,120]
[340839503,1729907447171,-544.08501232,0.00059452,120]
[340839504,1729907447181,-500.0,0.00059452,120]
[340839505,1729907447190,-482.34582681,0.00059452,120]
[340839506,1729907447199,-506.67154296,0.00059452,120]
[340839507,1729907447208,-520.87071749,0.00059452,120]
[340839508,1729907447218,-582.69638934,0.00059452,120]
[340839509,1729907447227,-515.89267608,0.00059452,120]
[340839510,1729907447237,-517.84274782,0.00059452,120]
[340839511,1729907447246,-335.85445904,0.00059452,120]
[340839512,1729907447256,-500.0,0.00059452,120]
[340839513,1729907447266,-500.0,0.00059452,120]
[340839514,1729907447276,-500.0,0.00059452,120]
[340839515,1729907447285,-557.62580399,0.00059452,120]
[340839516,1729907447294,-500.0,0.00059452,120]
[340839517,1729907447303,-553.18595839,0.00059452,120]
[340839518,1729907447314,-500.0,0.00059452,120]
[340839519,1729907447324,-500.0,0.00059452,120]
[340839520,1729907447333,-500.0,0.00059452,120]
[340839521,1729907447344,-500.0,0.00059452,120]
[340839522,1729907447354,-500.0,0.00059452,120]
[340839523,1729907447363,-500.0,0.00059452,120]
[340839524,1729907447373,-500.0,0.00059452,120]
[340839525,1729907447383,-500.0,0.00059452,120]
[340839526,1729907447392,-500.0,0.00059452,120]
[340839527,1729907447402,-500.0,0.00059452,120]
[340839528,1729907447412,-500.0,0.00059452,120]
[340839529,1729907447423,-500.0,0.00059452,120]
[340839530,1729907447433,-500.0,0.00059452,120]
[340839531,1729907447442,-500.0,0.00059452,21]
[340839532,1729907447452,-579.28608006,0.00059452,120]
[340839533,1729907447461,-500.0,0.00059452,120]
[340839534,1729907447471,-500.0,0.00059452,21]
[340839535,1729907447480,-500.0,0.00059452,120]
[340839536,1729907447490,-500.0,0.00059452,120]
[340839537,1729907447499,-500.0,0.00059452,21]
[340839538,1729907447508,-500.0,0.00059452,120]
[340839539,1729907447517,-500.0,0.00059452,120]
[340839540,1729907447526,-500.0,0.00059452,21]
[340839541,1729907447535,-500.0,0.00059452,120]
[340839542,1729907447544,-457.79070692,0.00059452,120]
[340839543,1729907447554,-538.289839,0.00059452,120]
[340839544,1729907447563,-500.0,0.00059452,21]
[340839545,1729907447572,-500.0,0.00059452,21]
[340839546,1729907447581,-500.0,0.00059452,120]
[340839547,1729907447590,-500.0,0.00059452,21]
[340839548,1729907447599,-500.0,0.00059452,120]
[340839549,1729907447608,-500.0,0.00059452,120]
[340839550,1729907447618,-606.08317436,0.00059452,120]
[340839551,1729907447627,-500.0,0.00059452,120]
[340839552,1729907447636,-500.0,0.00059452,120]
[340839553,1729907447645,-500.0,0.00059452,120]
[340839554,1729907447654,-500.0,0.00059452,120]
[340839555,1729907447662,-472.9840432,0.00059452,120]
[340839556,1729907447672,-500.0,0.00059452,120]
[340839557,1729907447681,-500.0,0.00059452,120]
[340839558,1729907447690,-500.0,0.00059452,120]
[340839559,1729907447699,-346.39466219,0.00059452,120]
[340839560,1729907447708,-622.56030398,0.00059452,120]
[340839561,1729907447717,-262.51302811,0.00059452,120]
[340839562,1729907447726,-433.44375671,0.00059452,120]
[340839563,1729907447736,-500.0,0.00059452,120]
[340839564,1729907447745,-500.0,0.00059452,120]
[340839565,1729907447755,-500.0,0.00059452,120]
[340839566,1729907447764,-500.0,0.00059452,120]
[340839567,1729907447773,-500.0,0.00059452,120]
[340839568,1729907447782,-593.90893545,0.00059452,120]
[340839569,1729907447791,-598.08,0.00059452,120]
[340839570,1729907447800,-204.41023209,0.00059452,120]
[340839571,1729907447809,-500.0,0.00059452,120]
[340839572,1729907447819,-598.08,0.00059452,120]
[340839573,1729907447828,-500.0,0.00059452,120]
[340839574,1729907447838,-500.0,0.00059452,120]
[340839575,1729907447847,-500.0,0.00059452,120]
[340839576,1729907447856,-598.08,0.00059452,120]
[340839577,1729907447865,-517.67572472,0.00059452,120]
[340839578,1729907447874,-449.63612581,0.00059452,120]
[340839579,1729907447883,-598.08,0.00059452,120]
[340839580,1729907447892,-520.21640883,0.00059452,120]